[Event "Early-Titled-Tuesday-Blitz-November-28-2023"]
[Site "Chess.com"]
[Date "2023.11.28"]
[Round "2"]
[White "Lion-Al-Messi"]
[Black "zozik"]
[Result "1-0"]
[WhiteElo "2655"]
[BlackElo "2374"]
[TimeControl "180+1"]
[EndTime "8:16:34 PST"]
[Termination "Lion-Al-Messi won by checkmate"]

1. e4 {[%clk 0:03:00.9]} 1... e6 {[%clk 0:02:17.5]} 2. d4 {[%clk 0:02:59.8]}
2... d5 {[%clk 0:02:16.8]} 3. exd5 {[%clk 0:02:59.6]} 3... exd5 {[%clk
0:02:16.3]} 4. Bd3 {[%clk 0:02:59]} 4... Nf6 {[%clk 0:02:15.6]} 5. Bg5 {[%clk
0:02:58.6]} 5... Be7 {[%clk 0:02:14]} 6. Nc3 {[%clk 0:02:58.5]} 6... O-O {[%clk
0:02:14.4]} 7. Nge2 {[%clk 0:02:58]} 7... h6 {[%clk 0:02:15]} 8. Bf4 {[%clk
0:02:54.9]} 8... c5 {[%clk 0:02:14.6]} 9. dxc5 {[%clk 0:02:54.2]} 9... Bxc5
{[%clk 0:02:12.8]} 10. Qd2 {[%clk 0:02:54.2]} 10... Nc6 {[%clk 0:01:58.4]} 11.
O-O-O {[%clk 0:02:53.2]} 11... Re8 {[%clk 0:01:40.7]} 12. Ng3 {[%clk 0:02:52.8]}
12... Ne5 {[%clk 0:01:22.6]} 13. Bxe5 {[%clk 0:02:31.2]} 13... Rxe5 {[%clk
0:01:21.5]} 14. Rhe1 {[%clk 0:02:32]} 14... Rxe1 {[%clk 0:01:20]} 15. Rxe1
{[%clk 0:02:32.9]} 15... Be6 {[%clk 0:01:18.4]} 16. Nf5 {[%clk 0:02:27.1]} 16...
Qd7 {[%clk 0:00:59.7]} 17. Qf4 {[%clk 0:02:15.6]} 17... Bxf5 {[%clk 0:00:51.4]}
18. Bxf5 {[%clk 0:02:15.5]} 18... Qc6 {[%clk 0:00:46.8]} 19. g4 {[%clk
0:02:07.5]} 19... Re8 {[%clk 0:00:46]} 20. Rxe8+ {[%clk 0:02:05.1]} 20... Qxe8
{[%clk 0:00:46.9]} 21. Kd1 {[%clk 0:01:50.3]} 21... d4 {[%clk 0:00:25.4]} 22.
Ne4 {[%clk 0:01:49.8]} 22... Nxe4 {[%clk 0:00:25.3]} 23. Bxe4 {[%clk 0:01:49.1]}
23... b6 {[%clk 0:00:23.9]} 24. h4 {[%clk 0:01:46.7]} 24... a5 {[%clk
0:00:23.2]} 25. g5 {[%clk 0:01:40.1]} 25... hxg5 {[%clk 0:00:22.9]} 26. hxg5
{[%clk 0:01:39.9]} 26... g6 {[%clk 0:00:22.6]} 27. a3 {[%clk 0:01:36.4]} 27...
Qe7 {[%clk 0:00:21]} 28. Bd5 {[%clk 0:01:30.6]} 28... Kg7 {[%clk 0:00:19.9]} 29.
Qh4 {[%clk 0:01:23]} 29... Qd6 {[%clk 0:00:10.5]} 30. Bc4 {[%clk 0:01:22.7]}
30... Qe7 {[%clk 0:00:06]} 31. Qh6+ {[%clk 0:01:22.3]} 31... Kg8 {[%clk
0:00:06.3]} 32. Qxg6+ {[%clk 0:01:22.7]} 32... Kf8 {[%clk 0:00:06.9]} 33. Qh5
{[%clk 0:01:20.9]} 33... Qe5 {[%clk 0:00:05.7]} 34. Qxf7# {[%clk 0:01:20.6]} 1-0

[Event "Early-Titled-Tuesday-Blitz-November-28-2023"]
[Site "Chess.com"]
[Date "2023.11.28"]
[Round "2"]
[White "mortngabriel"]
[Black "pirulillo"]
[Result "1-0"]
[WhiteElo "2514"]
[BlackElo "2295"]
[TimeControl "180+1"]
[EndTime "8:16:34 PST"]
[Termination "mortngabriel won by resignation"]

1. e4 {[%clk 0:03:00.9]} 1... c5 {[%clk 0:02:56.6]} 2. Nf3 {[%clk 0:02:48]} 2...
e6 {[%clk 0:02:56.2]} 3. d4 {[%clk 0:02:48.1]} 3... cxd4 {[%clk 0:02:55.4]} 4.
Nxd4 {[%clk 0:02:49]} 4... Nf6 {[%clk 0:02:54.9]} 5. Nc3 {[%clk 0:02:48.7]} 5...
Nc6 {[%clk 0:02:55]} 6. Ndb5 {[%clk 0:02:47.4]} 6... d6 {[%clk 0:02:54.8]} 7.
Bf4 {[%clk 0:02:45.8]} 7... e5 {[%clk 0:02:55.2]} 8. Bg5 {[%clk 0:02:46.1]} 8...
a6 {[%clk 0:02:55.6]} 9. Na3 {[%clk 0:02:46.6]} 9... b5 {[%clk 0:02:55.9]} 10.
Nd5 {[%clk 0:02:46.1]} 10... Be7 {[%clk 0:02:55.9]} 11. Bxf6 {[%clk 0:02:46.6]}
11... Bxf6 {[%clk 0:02:56.6]} 12. c4 {[%clk 0:02:47.2]} 12... b4 {[%clk
0:02:56.2]} 13. Nc2 {[%clk 0:02:47.7]} 13... O-O {[%clk 0:02:56.3]} 14. g3
{[%clk 0:02:47.9]} 14... Rb8 {[%clk 0:02:56.2]} 15. Bg2 {[%clk 0:02:48.2]} 15...
b3 {[%clk 0:02:51]} 16. axb3 {[%clk 0:02:47.5]} 16... Rxb3 {[%clk 0:02:51.9]}
17. Ra2 {[%clk 0:02:42]} 17... a5 {[%clk 0:02:46.6]} 18. O-O {[%clk 0:02:40.4]}
18... Bg5 {[%clk 0:02:39.6]} 19. Na3 {[%clk 0:02:27.1]} 19... Rb8 {[%clk
0:02:33.1]} 20. Nb5 {[%clk 0:02:26.4]} 20... Ba6 {[%clk 0:02:30.8]} 21. Ndc3
{[%clk 0:02:25.8]} 21... Be7 {[%clk 0:02:25.3]} 22. Qd2 {[%clk 0:02:23.3]} 22...
Qb6 {[%clk 0:02:20.7]} 23. Nd5 {[%clk 0:02:20.3]} 23... Qc5 {[%clk 0:02:19.7]}
24. Rc1 {[%clk 0:01:27.2]} 24... Rfd8 {[%clk 0:01:36]} 25. b4 {[%clk 0:01:23.7]}
25... Nxb4 {[%clk 0:01:33.2]} 26. Nxe7+ {[%clk 0:01:15.6]} 26... Kh8 {[%clk
0:01:30.3]} 27. Rxa5 {[%clk 0:01:08.2]} 27... Nd3 {[%clk 0:01:18]} 28. Qxd3
{[%clk 0:01:03.4]} 28... Bxb5 {[%clk 0:01:17.8]} 29. Rd1 {[%clk 0:00:53.6]}
29... Qxc4 {[%clk 0:01:09.5]} 30. Qxc4 {[%clk 0:00:51.9]} 30... Bxc4 {[%clk
0:01:10.4]} 31. Nc6 {[%clk 0:00:48.5]} 31... Ra8 {[%clk 0:01:06.7]} 32. Nxd8
{[%clk 0:00:43.6]} 32... Rxa5 {[%clk 0:01:05.9]} 33. Bf1 {[%clk 0:00:44.5]}
33... Bxf1 {[%clk 0:01:03.2]} 34. Kxf1 {[%clk 0:00:44.4]} 34... Kg8 {[%clk
0:00:58.7]} 35. Rxd6 {[%clk 0:00:43.9]} 35... g6 {[%clk 0:00:53.7]} 36. Rd7
{[%clk 0:00:39.8]} 1-0

[Event "Early-Titled-Tuesday-Blitz-November-28-2023"]
[Site "Chess.com"]
[Date "2023.11.28"]
[Round "2"]
[White "Aguiar94"]
[Black "Azerichess"]
[Result "0-1"]
[WhiteElo "2630"]
[BlackElo "3044"]
[TimeControl "180+1"]
[EndTime "8:16:35 PST"]
[Termination "Azerichess won by resignation"]

1. e4 {[%clk 0:02:59]} 1... e6 {[%clk 0:02:55.5]} 2. d4 {[%clk 0:02:58.7]} 2...
d5 {[%clk 0:02:56]} 3. Nd2 {[%clk 0:02:58.9]} 3... dxe4 {[%clk 0:02:55.3]} 4.
Nxe4 {[%clk 0:02:59.8]} 4... Nd7 {[%clk 0:02:55.9]} 5. Nf3 {[%clk 0:03:00]} 5...
Ngf6 {[%clk 0:02:56.1]} 6. Bd3 {[%clk 0:03:00.3]} 6... Nxe4 {[%clk 0:02:54.9]}
7. Bxe4 {[%clk 0:03:01.2]} 7... Nf6 {[%clk 0:02:55.5]} 8. Bd3 {[%clk 0:03:00.5]}
8... c5 {[%clk 0:02:54.8]} 9. O-O {[%clk 0:02:52.6]} 9... cxd4 {[%clk
0:02:52.3]} 10. Nxd4 {[%clk 0:02:53.5]} 10... Be7 {[%clk 0:02:49.9]} 11. b3
{[%clk 0:02:52.4]} 11... O-O {[%clk 0:02:45.5]} 12. Bb2 {[%clk 0:02:52.6]} 12...
a6 {[%clk 0:02:42.2]} 13. Qe2 {[%clk 0:02:52.3]} 13... Qc7 {[%clk 0:02:40.1]}
14. Nf3 {[%clk 0:02:42.6]} 14... Rd8 {[%clk 0:02:26.4]} 15. Rad1 {[%clk
0:02:36.9]} 15... Nd5 {[%clk 0:02:20.3]} 16. Be5 {[%clk 0:02:21.7]} 16... Qa5
{[%clk 0:02:04.1]} 17. c4 {[%clk 0:02:06.7]} 17... Nf6 {[%clk 0:01:47.2]} 18.
Qc2 {[%clk 0:01:59.2]} 18... h6 {[%clk 0:01:41.9]} 19. Bc3 {[%clk 0:01:27.2]}
19... Qc7 {[%clk 0:01:40.5]} 20. Ne5 {[%clk 0:01:25.1]} 20... b6 {[%clk
0:01:36.2]} 21. f4 {[%clk 0:01:19.1]} 21... Bb7 {[%clk 0:01:33.4]} 22. f5 {[%clk
0:01:17.6]} 22... Bc5+ {[%clk 0:01:20.4]} 23. Kh1 {[%clk 0:01:16.4]} 23... Bd4
{[%clk 0:01:21]} 24. Bxd4 {[%clk 0:01:05.4]} 24... Rxd4 {[%clk 0:01:21.9]} 25.
Qe2 {[%clk 0:01:05.9]} 25... exf5 {[%clk 0:01:15.2]} 26. Bxf5 {[%clk 0:00:55.7]}
26... Rxd1 {[%clk 0:01:13.7]} 27. Rxd1 {[%clk 0:00:56.6]} 27... Re8 {[%clk
0:01:14]} 28. Re1 {[%clk 0:00:57.2]} 28... g6 {[%clk 0:01:08.8]} 29. Bg4 {[%clk
0:00:46.6]} 29... Be4 {[%clk 0:01:00.9]} 0-1

[Event "Early-Titled-Tuesday-Blitz-November-28-2023"]
[Site "Chess.com"]
[Date "2023.11.28"]
[Round "2"]
[White "Haykoooo0o"]
[Black "MikeSailer"]
[Result "0-1"]
[WhiteElo "2412"]
[BlackElo "2051"]
[TimeControl "180+1"]
[EndTime "8:16:35 PST"]
[Termination "MikeSailer won by checkmate"]

1. c4 {[%clk 0:03:00.9]} 1... e6 {[%clk 0:02:56.2]} 2. Nc3 {[%clk 0:03:01.4]}
2... d5 {[%clk 0:02:56.1]} 3. e3 {[%clk 0:03:01.3]} 3... c5 {[%clk 0:02:56.3]}
4. d4 {[%clk 0:02:56.3]} 4... Nf6 {[%clk 0:02:54.2]} 5. Nf3 {[%clk 0:02:55.8]}
5... Nc6 {[%clk 0:02:53.9]} 6. dxc5 {[%clk 0:02:54.4]} 6... Bxc5 {[%clk
0:02:53.4]} 7. cxd5 {[%clk 0:02:55]} 7... exd5 {[%clk 0:02:53.1]} 8. Be2 {[%clk
0:02:55.8]} 8... O-O {[%clk 0:02:45.9]} 9. O-O {[%clk 0:02:56.2]} 9... a6 {[%clk
0:02:32.5]} 10. b3 {[%clk 0:02:56]} 10... Be6 {[%clk 0:02:25.7]} 11. Bb2 {[%clk
0:02:54.6]} 11... Qe7 {[%clk 0:02:24.1]} 12. Rc1 {[%clk 0:02:51.3]} 12... Rfd8
{[%clk 0:02:21.7]} 13. Na4 {[%clk 0:02:43.9]} 13... Ba7 {[%clk 0:02:21.2]} 14.
Nd4 {[%clk 0:02:44.6]} 14... Rac8 {[%clk 0:02:18.6]} 15. Nxc6 {[%clk 0:02:41.2]}
15... bxc6 {[%clk 0:02:06.8]} 16. Bxa6 {[%clk 0:02:37.4]} 16... Rc7 {[%clk
0:02:06.5]} 17. Be5 {[%clk 0:02:31.8]} 17... Rcd7 {[%clk 0:02:00.4]} 18. Rxc6
{[%clk 0:02:32.2]} 18... Ng4 {[%clk 0:01:11.1]} 19. Bd4 {[%clk 0:02:27.6]} 19...
Bb8 {[%clk 0:01:07.8]} 20. h3 {[%clk 0:02:11.9]} 20... Qh4 {[%clk 0:00:56.9]}
21. Rxe6 {[%clk 0:02:11.2]} 21... Bh2+ {[%clk 0:00:47.7]} 22. Kh1 {[%clk
0:02:11]} 22... Nxf2+ {[%clk 0:00:47.1]} 23. Rxf2 {[%clk 0:02:11.2]} 23... fxe6
{[%clk 0:00:30.6]} 24. Rf1 {[%clk 0:02:03.6]} 24... Bb8 {[%clk 0:00:29.1]} 25.
Nc5 {[%clk 0:01:58.3]} 25... Qg3 {[%clk 0:00:19.4]} 26. Rf4 {[%clk 0:01:49]}
26... Bxf4 {[%clk 0:00:15.2]} 27. exf4 {[%clk 0:01:49.9]} 27... Rf7 {[%clk
0:00:13.4]} 28. Nxe6 {[%clk 0:01:48.3]} 28... Re8 {[%clk 0:00:11.9]} 29. f5
{[%clk 0:01:38.3]} 29... Rxf5 {[%clk 0:00:11.5]} 30. Nxg7 {[%clk 0:01:38.5]}
30... Re1+ {[%clk 0:00:11]} 31. Qxe1 {[%clk 0:01:32.6]} 31... Qxe1+ {[%clk
0:00:11.3]} 32. Kh2 {[%clk 0:01:33.5]} 32... Rg5 {[%clk 0:00:08.5]} 33. Bc8
{[%clk 0:01:24.6]} 33... Qg3+ {[%clk 0:00:07.5]} 34. Kg1 {[%clk 0:01:23.6]}
34... Qxg2# {[%clk 0:00:08.4]} 0-1

[Event "Early-Titled-Tuesday-Blitz-November-28-2023"]
[Site "Chess.com"]
[Date "2023.11.28"]
[Round "2"]
[White "Firouzja2003"]
[Black "bazar-wokzal"]
[Result "1-0"]
[WhiteElo "3054"]
[BlackElo "2636"]
[TimeControl "180+1"]
[EndTime "8:16:38 PST"]
[Termination "Firouzja2003 won by resignation"]

1. d4 {[%clk 0:02:55.2]} 1... Nf6 {[%clk 0:02:59.5]} 2. Nc3 {[%clk 0:02:45.6]}
2... d5 {[%clk 0:02:59.1]} 3. Bf4 {[%clk 0:02:45.2]} 3... g6 {[%clk 0:02:56]} 4.
e3 {[%clk 0:02:44.9]} 4... Bg7 {[%clk 0:02:55.9]} 5. h4 {[%clk 0:02:45.1]} 5...
h5 {[%clk 0:02:54.7]} 6. Nf3 {[%clk 0:02:45.2]} 6... c6 {[%clk 0:02:55.1]} 7.
Ne5 {[%clk 0:02:45.3]} 7... Qb6 {[%clk 0:02:54.7]} 8. a3 {[%clk 0:02:41]} 8...
Ng4 {[%clk 0:02:50.7]} 9. Nd3 {[%clk 0:02:35.4]} 9... Nd7 {[%clk 0:02:41.8]} 10.
Na4 {[%clk 0:02:23.7]} 10... Qa5+ {[%clk 0:02:36.4]} 11. b4 {[%clk 0:02:18.8]}
11... Qd8 {[%clk 0:02:19.3]} 12. c3 {[%clk 0:02:16.1]} 12... e5 {[%clk
0:02:18.9]} 13. Bg3 {[%clk 0:02:16]} 13... exd4 {[%clk 0:01:55.3]} 14. cxd4
{[%clk 0:02:14]} 14... O-O {[%clk 0:01:55]} 15. Be2 {[%clk 0:02:07.4]} 15...
Ndf6 {[%clk 0:01:50.1]} 16. Nc3 {[%clk 0:02:06]} 16... Re8 {[%clk 0:01:32.6]}
17. Bf4 {[%clk 0:02:04]} 17... a5 {[%clk 0:01:24.4]} 18. b5 {[%clk 0:01:55.8]}
18... a4 {[%clk 0:01:10.5]} 19. bxc6 {[%clk 0:01:41.5]} 19... bxc6 {[%clk
0:01:10.3]} 20. O-O {[%clk 0:01:21.3]} 20... Bf5 {[%clk 0:01:09.3]} 21. Nb4
{[%clk 0:01:19.8]} 21... c5 {[%clk 0:00:58.9]} 22. dxc5 {[%clk 0:01:15.5]} 22...
Ne4 {[%clk 0:00:58.7]} 23. Nxe4 {[%clk 0:01:11.9]} 23... Bxa1 {[%clk 0:00:56.9]}
24. Nd6 {[%clk 0:01:02.6]} 24... Be5 {[%clk 0:00:48]} 25. Nc6 {[%clk 0:00:49]}
25... Qxh4 {[%clk 0:00:47.7]} 26. Nxe5 {[%clk 0:00:49]} 26... Rxe5 {[%clk
0:00:33.3]} 27. Bxe5 {[%clk 0:00:48.5]} 27... Nxe5 {[%clk 0:00:32.4]} 28. Qxd5
{[%clk 0:00:49.2]} 1-0

[Event "Early-Titled-Tuesday-Blitz-November-28-2023"]
[Site "Chess.com"]
[Date "2023.11.28"]
[Round "2"]
[White "LimeInTheCoconut"]
[Black "IsaqueGoncalvesSanto"]
[Result "1-0"]
[WhiteElo "2419"]
[BlackElo "1896"]
[TimeControl "180+1"]
[EndTime "8:16:44 PST"]
[Termination "LimeInTheCoconut won on time"]

1. e4 {[%clk 0:03:00.9]} 1... e6 {[%clk 0:02:58.8]} 2. d3 {[%clk 0:02:55.7]}
2... d5 {[%clk 0:02:57.3]} 3. Nd2 {[%clk 0:02:56.4]} 3... c5 {[%clk 0:02:57.1]}
4. Ngf3 {[%clk 0:02:56.6]} 4... Nc6 {[%clk 0:02:57.3]} 5. Be2 {[%clk 0:02:53.9]}
5... Nf6 {[%clk 0:02:56.1]} 6. O-O {[%clk 0:02:54.3]} 6... Be7 {[%clk
0:02:54.7]} 7. c3 {[%clk 0:02:53.8]} 7... Qc7 {[%clk 0:02:53.1]} 8. a3 {[%clk
0:02:52.2]} 8... b6 {[%clk 0:02:52.2]} 9. b4 {[%clk 0:02:49.6]} 9... Bb7 {[%clk
0:02:40.8]} 10. bxc5 {[%clk 0:02:34.2]} 10... bxc5 {[%clk 0:02:27.6]} 11. Rb1
{[%clk 0:02:33]} 11... O-O {[%clk 0:02:20.7]} 12. e5 {[%clk 0:02:26.8]} 12...
Nd7 {[%clk 0:02:19]} 13. d4 {[%clk 0:02:26.5]} 13... c4 {[%clk 0:02:11.8]} 14.
h4 {[%clk 0:02:21.4]} 14... f5 {[%clk 0:02:10.9]} 15. exf6 {[%clk 0:02:08.2]}
15... Nxf6 {[%clk 0:01:55.9]} 16. Ng5 {[%clk 0:02:02.1]} 16... Bc8 {[%clk
0:01:32.8]} 17. Ndf3 {[%clk 0:01:54.6]} 17... h6 {[%clk 0:01:29.2]} 18. Nh3
{[%clk 0:01:54.5]} 18... Ne4 {[%clk 0:01:26.6]} 19. Qc2 {[%clk 0:01:49.4]} 19...
e5 {[%clk 0:01:16.6]} 20. Bxc4 {[%clk 0:01:40.1]} 20... Be6 {[%clk 0:00:57.4]}
21. Re1 {[%clk 0:01:22.4]} 21... exd4 {[%clk 0:00:49.1]} 22. Rxe4 {[%clk
0:01:15.7]} 22... Bxh3 {[%clk 0:00:15.6]} 23. Bxd5+ {[%clk 0:01:13.3]} 23... Kh8
{[%clk 0:00:16.2]} 24. gxh3 {[%clk 0:01:07.8]} 24... Rxf3 {[%clk 0:00:14.7]} 25.
Rxe7 {[%clk 0:01:08.4]} 25... Qxe7 {[%clk 0:00:10]} 26. Bxf3 {[%clk 0:01:08.3]}
26... Rc8 {[%clk 0:00:08.8]} 27. cxd4 {[%clk 0:01:01.9]} 1-0

[Event "Early-Titled-Tuesday-Blitz-November-28-2023"]
[Site "Chess.com"]
[Date "2023.11.28"]
[Round "2"]
[White "ammarzooqi"]
[Black "DenisQ"]
[Result "0-1"]
[WhiteElo "2339"]
[BlackElo "2646"]
[TimeControl "180+1"]
[EndTime "8:16:45 PST"]
[Termination "DenisQ won by resignation"]

1. e4 {[%clk 0:02:58.5]} 1... c6 {[%clk 0:02:59.6]} 2. c4 {[%clk 0:02:58.3]}
2... d5 {[%clk 0:03:00.5]} 3. cxd5 {[%clk 0:02:57.1]} 3... cxd5 {[%clk
0:03:01.4]} 4. exd5 {[%clk 0:02:55.9]} 4... Nf6 {[%clk 0:03:00.8]} 5. Nc3 {[%clk
0:02:55.1]} 5... Nxd5 {[%clk 0:03:00.4]} 6. Nf3 {[%clk 0:02:52.5]} 6... Nc6
{[%clk 0:02:59.3]} 7. Bc4 {[%clk 0:02:52.4]} 7... e6 {[%clk 0:02:55.9]} 8. O-O
{[%clk 0:02:52.4]} 8... Be7 {[%clk 0:02:54.7]} 9. Re1 {[%clk 0:02:52.5]} 9...
O-O {[%clk 0:02:53.4]} 10. d4 {[%clk 0:02:50.9]} 10... Nxc3 {[%clk 0:02:49.9]}
11. bxc3 {[%clk 0:02:50.9]} 11... b6 {[%clk 0:02:49.9]} 12. a4 {[%clk
0:02:37.7]} 12... Bb7 {[%clk 0:02:47.9]} 13. Ba3 {[%clk 0:02:26.5]} 13... Rc8
{[%clk 0:02:44.1]} 14. Bd3 {[%clk 0:02:18]} 14... Na5 {[%clk 0:02:35.6]} 15.
Bxe7 {[%clk 0:01:56]} 15... Qxe7 {[%clk 0:02:33.9]} 16. Rc1 {[%clk 0:01:54.1]}
16... Rc7 {[%clk 0:01:55.8]} 17. Be4 {[%clk 0:01:52.6]} 17... Bxe4 {[%clk
0:01:53.6]} 18. Rxe4 {[%clk 0:01:53.4]} 18... Qa3 {[%clk 0:01:49.4]} 19. Re3
{[%clk 0:01:07.2]} 19... Rfc8 {[%clk 0:01:47.3]} 20. Ne5 {[%clk 0:01:03.5]}
20... Rxc3 {[%clk 0:01:39.7]} 21. Rexc3 {[%clk 0:00:46.9]} 21... Rxc3 {[%clk
0:01:40.6]} 22. Rxc3 {[%clk 0:00:45.5]} 22... Qxc3 {[%clk 0:01:41.5]} 23. h3
{[%clk 0:00:39.6]} 23... Nc6 {[%clk 0:01:20.3]} 24. Nf3 {[%clk 0:00:23.6]} 24...
Qc4 {[%clk 0:01:11.5]} 25. Kh2 {[%clk 0:00:22.3]} 25... h6 {[%clk 0:01:10.1]}
26. g3 {[%clk 0:00:17.4]} 26... Qd5 {[%clk 0:01:08.3]} 27. Kg2 {[%clk
0:00:17.6]} 27... e5 {[%clk 0:01:07.5]} 28. Qd3 {[%clk 0:00:06.9]} 28... e4
{[%clk 0:01:04.4]} 0-1

[Event "Early-Titled-Tuesday-Blitz-November-28-2023"]
[Site "Chess.com"]
[Date "2023.11.28"]
[Round "2"]
[White "LaPiToB"]
[Black "Herman-NY"]
[Result "0-1"]
[WhiteElo "2267"]
[BlackElo "2503"]
[TimeControl "180+1"]
[EndTime "8:16:48 PST"]
[Termination "Herman-NY won by resignation"]

1. d4 {[%clk 0:03:00.9]} 1... Nf6 {[%clk 0:02:59.3]} 2. c4 {[%clk 0:03:01.1]}
2... g6 {[%clk 0:02:59.6]} 3. Nc3 {[%clk 0:03:00.2]} 3... Bg7 {[%clk 0:03:00.2]}
4. e4 {[%clk 0:02:59.7]} 4... d6 {[%clk 0:03:00.8]} 5. Be2 {[%clk 0:02:59.8]}
5... O-O {[%clk 0:03:00.4]} 6. Bg5 {[%clk 0:03:00.4]} 6... c5 {[%clk 0:02:55.8]}
7. d5 {[%clk 0:03:00]} 7... b5 {[%clk 0:02:48.6]} 8. cxb5 {[%clk 0:02:58.5]}
8... a6 {[%clk 0:02:48.2]} 9. a4 {[%clk 0:02:58.4]} 9... Qa5 {[%clk 0:02:47.8]}
10. Qd2 {[%clk 0:02:48.2]} 10... axb5 {[%clk 0:02:45.1]} 11. Bxb5 {[%clk
0:02:29.4]} 11... Ba6 {[%clk 0:02:41.4]} 12. Bxa6 {[%clk 0:02:04.9]} 12... Nxa6
{[%clk 0:02:36]} 13. Nf3 {[%clk 0:02:03.6]} 13... Nb4 {[%clk 0:02:01.4]} 14. O-O
{[%clk 0:02:01.4]} 14... c4 {[%clk 0:01:59.3]} 15. Nd4 {[%clk 0:01:55]} 15...
Rfe8 {[%clk 0:01:10.1]} 16. Rfe1 {[%clk 0:01:33]} 16... Nd3 {[%clk 0:01:05.8]}
17. Re2 {[%clk 0:01:32.3]} 17... Nxd5 {[%clk 0:00:43.3]} 18. Nc6 {[%clk
0:01:20.3]} 18... Bxc3 {[%clk 0:00:42.7]} 19. bxc3 {[%clk 0:01:19.9]} 19... Qxc3
{[%clk 0:00:43]} 20. Qxc3 {[%clk 0:01:02.7]} 20... Nxc3 {[%clk 0:00:42.9]} 21.
Rc2 {[%clk 0:01:02.6]} 21... Nxe4 {[%clk 0:00:43.2]} 22. Bh4 {[%clk 0:00:35.1]}
22... g5 {[%clk 0:00:39.8]} 23. Rxc4 {[%clk 0:00:34.1]} 23... d5 {[%clk
0:00:40.2]} 24. Rd4 {[%clk 0:00:34.1]} 24... Nf4 {[%clk 0:00:28.3]} 25. Bxg5
{[%clk 0:00:32.4]} 25... Ne2+ {[%clk 0:00:28.8]} 26. Kf1 {[%clk 0:00:32.2]}
26... Nxd4 {[%clk 0:00:29.5]} 27. Nxe7+ {[%clk 0:00:31.1]} 27... Kf8 {[%clk
0:00:26.3]} 28. Nxd5 {[%clk 0:00:31.2]} 28... Nxg5 {[%clk 0:00:26.7]} 0-1

[Event "Early-Titled-Tuesday-Blitz-November-28-2023"]
[Site "Chess.com"]
[Date "2023.11.28"]
[Round "2"]
[White "Emp3rador"]
[Black "Kirill_Klukin"]
[Result "0-1"]
[WhiteElo "2555"]
[BlackElo "2859"]
[TimeControl "180+1"]
[EndTime "8:16:51 PST"]
[Termination "Kirill_Klukin won by checkmate"]

1. e4 {[%clk 0:03:00.9]} 1... c5 {[%clk 0:02:58.5]} 2. Nf3 {[%clk 0:03:00.3]}
2... g6 {[%clk 0:02:58.5]} 3. c4 {[%clk 0:02:59.2]} 3... Bg7 {[%clk 0:02:58.7]}
4. d4 {[%clk 0:02:59.7]} 4... cxd4 {[%clk 0:02:59.6]} 5. Nxd4 {[%clk 0:02:59.1]}
5... Nc6 {[%clk 0:03:00.3]} 6. Be3 {[%clk 0:02:59]} 6... Nf6 {[%clk 0:03:00.8]}
7. Nc3 {[%clk 0:02:59.2]} 7... O-O {[%clk 0:03:01.5]} 8. Be2 {[%clk 0:02:59.3]}
8... d6 {[%clk 0:03:02]} 9. O-O {[%clk 0:02:59.3]} 9... Bd7 {[%clk 0:03:02.8]}
10. Qd2 {[%clk 0:02:58.4]} 10... Nxd4 {[%clk 0:03:03.1]} 11. Bxd4 {[%clk
0:02:58.8]} 11... Bc6 {[%clk 0:03:03.8]} 12. f3 {[%clk 0:02:59.4]} 12... a5
{[%clk 0:03:04.2]} 13. Rfc1 {[%clk 0:02:57.6]} 13... a4 {[%clk 0:03:03.9]} 14.
Rab1 {[%clk 0:02:57.9]} 14... Nd7 {[%clk 0:03:02.2]} 15. Be3 {[%clk 0:02:57.3]}
15... Nc5 {[%clk 0:02:49.1]} 16. b4 {[%clk 0:02:55.7]} 16... axb3 {[%clk
0:02:49.1]} 17. axb3 {[%clk 0:02:56.6]} 17... Ra3 {[%clk 0:02:49.7]} 18. Qc2
{[%clk 0:02:34.3]} 18... e6 {[%clk 0:02:41]} 19. Rd1 {[%clk 0:02:18.7]} 19...
Qe7 {[%clk 0:02:28]} 20. Bf2 {[%clk 0:02:13.6]} 20... Rfa8 {[%clk 0:02:24.3]}
21. h3 {[%clk 0:01:39.7]} 21... Be5 {[%clk 0:02:22]} 22. Bd4 {[%clk 0:00:58.8]}
22... Bxd4+ {[%clk 0:01:55.3]} 23. Rxd4 {[%clk 0:00:58.3]} 23... e5 {[%clk
0:01:56.1]} 24. Rd2 {[%clk 0:00:50.3]} 24... Ne6 {[%clk 0:01:56]} 25. Bf1 {[%clk
0:00:48.7]} 25... Nd4 {[%clk 0:01:55.2]} 26. Qd1 {[%clk 0:00:48.7]} 26... Qg5
{[%clk 0:01:53.3]} 27. Kh1 {[%clk 0:00:41.2]} 27... Nxb3 {[%clk 0:01:19.9]} 28.
Rxd6 {[%clk 0:00:32.2]} 28... Nd4 {[%clk 0:01:18.8]} 29. Ne2 {[%clk 0:00:29.6]}
29... Nxf3 {[%clk 0:00:54.4]} 30. gxf3 {[%clk 0:00:26.3]} 30... Rxf3 {[%clk
0:00:55.3]} 31. Bg2 {[%clk 0:00:13.8]} 31... Bxe4 {[%clk 0:00:54.5]} 32. Ng1
{[%clk 0:00:13.9]} 32... Rxh3+ {[%clk 0:00:53.9]} 33. Nxh3 {[%clk 0:00:13.5]}
33... Qxg2# {[%clk 0:00:54]} 0-1